[Event "Early-Titled-Tuesday-Blitz-March-26-2024"]
[Site "Chess.com"]
[Date "2024.03.26"]
[Round "3"]
[White "TangerineandLemon25"]
[Black "Kavyev_Ruslan"]
[Result "1-0"]
[WhiteElo "2591"]
[BlackElo "2403"]
[TimeControl "180+1"]
[EndTime "8:28:17 PDT"]
[Termination "TangerineandLemon25 won on time"]

1. e4 {[%clk 0:03:00.9]} 1... c5 {[%clk 0:03:00]} 2. Nf3 {[%clk 0:03:00.3]} 2...
Nc6 {[%clk 0:03:00.6]} 3. d4 {[%clk 0:02:53.9]} 3... cxd4 {[%clk 0:03:01.5]} 4.
Nxd4 {[%clk 0:02:54.3]} 4... Nf6 {[%clk 0:03:01.4]} 5. Nc3 {[%clk 0:02:54.9]}
5... e5 {[%clk 0:03:01.6]} 6. Ndb5 {[%clk 0:02:54.8]} 6... d6 {[%clk 0:03:01.8]}
7. Nd5 {[%clk 0:02:55.2]} 7... Nxd5 {[%clk 0:03:00.9]} 8. exd5 {[%clk
0:02:56.1]} 8... Ne7 {[%clk 0:03:01.2]} 9. c4 {[%clk 0:02:54.2]} 9... Ng6 {[%clk
0:03:01.2]} 10. Bd3 {[%clk 0:02:54.2]} 10... Bd7 {[%clk 0:02:50.6]} 11. Nc3
{[%clk 0:02:53.6]} 11... Be7 {[%clk 0:02:48.7]} 12. O-O {[%clk 0:02:52.4]} 12...
O-O {[%clk 0:02:48.3]} 13. f4 {[%clk 0:02:48.2]} 13... f5 {[%clk 0:02:46.4]} 14.
fxe5 {[%clk 0:02:47.4]} 14... Nxe5 {[%clk 0:02:45.9]} 15. Be2 {[%clk 0:02:45.7]}
15... Rc8 {[%clk 0:02:33.5]} 16. Qd4 {[%clk 0:02:37.1]} 16... Bf6 {[%clk
0:02:28.6]} 17. Qxa7 {[%clk 0:02:25]} 17... Nxc4 {[%clk 0:02:21.9]} 18. Bxc4
{[%clk 0:02:25.9]} 18... Rxc4 {[%clk 0:02:21.8]} 19. Be3 {[%clk 0:01:40.6]}
19... Be5 {[%clk 0:01:39.8]} 20. Ne2 {[%clk 0:00:25.7]} 20... f4 {[%clk
0:01:21.2]} 21. Bd4 {[%clk 0:00:20.5]} 21... Qf6 {[%clk 0:01:08.1]} 22. Bxe5
{[%clk 0:00:18.1]} 22... Qxe5 {[%clk 0:01:09]} 23. Qf2 {[%clk 0:00:17.6]} 23...
Rc2 {[%clk 0:01:03.3]} 24. Rae1 {[%clk 0:00:15.6]} 24... Re8 {[%clk 0:00:49.7]}
25. Qxf4 {[%clk 0:00:12.6]} 25... Qxf4 {[%clk 0:00:08.8]} 26. Nxf4 {[%clk
0:00:13.5]} 26... Rxb2 {[%clk 0:00:08.7]} 27. Rxe8+ {[%clk 0:00:12.9]} 27...
Bxe8 {[%clk 0:00:09.6]} 28. Ne6 {[%clk 0:00:13.2]} 28... Bf7 {[%clk 0:00:09.4]}
29. Rc1 {[%clk 0:00:13.5]} 29... Bxe6 {[%clk 0:00:08.1]} 30. dxe6 {[%clk
0:00:14.4]} 30... Kf8 {[%clk 0:00:07.6]} 31. Rc7 {[%clk 0:00:13.3]} 31... Rxa2
{[%clk 0:00:06.1]} 32. Rxb7 {[%clk 0:00:13.2]} 32... Re2 {[%clk 0:00:06.1]} 33.
Rf7+ {[%clk 0:00:13.3]} 33... Kg8 {[%clk 0:00:04.1]} 34. Re7 {[%clk 0:00:13.5]}
34... Kf8 {[%clk 0:00:03.9]} 35. Rf7+ {[%clk 0:00:11.3]} 35... Kg8 {[%clk
0:00:03.4]} 36. Ra7 {[%clk 0:00:12.2]} 36... Rxe6 {[%clk 0:00:02.3]} 37. Kf2
{[%clk 0:00:13.1]} 37... Kf8 {[%clk 0:00:01.7]} 38. Ra8+ {[%clk 0:00:12.6]}
38... Kf7 {[%clk 0:00:01.2]} 39. Rh8 {[%clk 0:00:13.5]} 1-0

[Event "Early-Titled-Tuesday-Blitz-March-26-2024"]
[Site "Chess.com"]
[Date "2024.03.26"]
[Round "3"]
[White "Flaccidmoves"]
[Black "Vision_64"]
[Result "1-0"]
[WhiteElo "2451"]
[BlackElo "2244"]
[TimeControl "180+1"]
[EndTime "8:28:17 PDT"]
[Termination "Flaccidmoves won on time"]

1. c4 {[%clk 0:03:00.9]} 1... Nf6 {[%clk 0:02:55.8]} 2. Nc3 {[%clk 0:03:00.6]}
2... g6 {[%clk 0:02:55.5]} 3. e4 {[%clk 0:03:00.4]} 3... d6 {[%clk 0:02:55.5]}
4. d4 {[%clk 0:03:00.8]} 4... Bg7 {[%clk 0:02:55.9]} 5. Nf3 {[%clk 0:03:01.4]}
5... Nbd7 {[%clk 0:02:55.6]} 6. h3 {[%clk 0:02:56.8]} 6... O-O {[%clk
0:02:55.6]} 7. Be3 {[%clk 0:02:40.3]} 7... e5 {[%clk 0:02:55.3]} 8. d5 {[%clk
0:02:39.1]} 8... Qe7 {[%clk 0:02:45.9]} 9. g4 {[%clk 0:02:32.8]} 9... c5 {[%clk
0:02:38.3]} 10. Bd3 {[%clk 0:02:29.7]} 10... a6 {[%clk 0:01:54.3]} 11. a4 {[%clk
0:02:14.1]} 11... Ne8 {[%clk 0:01:42.6]} 12. Qd2 {[%clk 0:02:06.3]} 12... Nc7
{[%clk 0:01:28.2]} 13. h4 {[%clk 0:01:55.6]} 13... Nf6 {[%clk 0:01:07.3]} 14.
Bg5 {[%clk 0:01:41.1]} 14... Bxg4 {[%clk 0:01:03.8]} 15. Nh2 {[%clk 0:01:35.8]}
15... Bd7 {[%clk 0:00:57.1]} 16. h5 {[%clk 0:01:33.2]} 16... b5 {[%clk
0:00:37.1]} 17. f3 {[%clk 0:01:17.2]} 17... Qe8 {[%clk 0:00:29.1]} 18. h6 {[%clk
0:01:13.2]} 18... Bh8 {[%clk 0:00:28.3]} 19. Kf2 {[%clk 0:01:12.1]} 19... b4
{[%clk 0:00:21.3]} 20. Nd1 {[%clk 0:01:06.9]} 20... Bxa4 {[%clk 0:00:21.1]} 21.
Ne3 {[%clk 0:01:03.3]} 21... Nh5 {[%clk 0:00:19.7]} 22. Nhg4 {[%clk 0:01:01.8]}
22... f6 {[%clk 0:00:17]} 23. Rxh5 {[%clk 0:00:56.4]} 23... fxg5 {[%clk
0:00:17.1]} 24. Rxg5 {[%clk 0:00:54.4]} 24... Bd7 {[%clk 0:00:16.7]} 25. Nf5
{[%clk 0:00:53.9]} 25... Bxf5 {[%clk 0:00:16]} 26. exf5 {[%clk 0:00:53.9]} 26...
e4 {[%clk 0:00:11.2]} 27. Bxe4 {[%clk 0:00:52.3]} 27... Bd4+ {[%clk 0:00:08.6]}
28. Kg2 {[%clk 0:00:52]} 28... Kh8 {[%clk 0:00:07.3]} 29. fxg6 {[%clk
0:00:52.2]} 29... hxg6 {[%clk 0:00:07.7]} 30. Rxg6 {[%clk 0:00:49.5]} 30... Rg8
{[%clk 0:00:05.1]} 31. Qg5 {[%clk 0:00:47.6]} 31... Rxg6 {[%clk 0:00:02.1]} 32.
Qxg6 {[%clk 0:00:48.5]} 32... Qxg6 {[%clk 0:00:02]} 33. Bxg6 {[%clk 0:00:49.4]}
33... Rg8 {[%clk 0:00:02.3]} 34. Be4 {[%clk 0:00:47.8]} 34... Bxb2 {[%clk
0:00:01.6]} 35. Ra2 {[%clk 0:00:45.6]} 35... Bd4 {[%clk 0:00:01.7]} 36. Kh3
{[%clk 0:00:40.8]} 36... b3 {[%clk 0:00:02.2]} 37. Ra3 {[%clk 0:00:39.7]} 37...
b2 {[%clk 0:00:02.3]} 38. Rb3 {[%clk 0:00:40.1]} 38... Re8 {[%clk 0:00:02.4]}
39. Rb7 {[%clk 0:00:39.1]} 39... Na8 {[%clk 0:00:01.3]} 40. Rh7+ {[%clk
0:00:35.4]} 40... Kg8 {[%clk 0:00:02.2]} 41. Rb7 {[%clk 0:00:36.3]} 41... Kh8
{[%clk 0:00:01.6]} 42. h7 {[%clk 0:00:37.1]} 42... a5 {[%clk 0:00:01.3]} 43. Nh6
{[%clk 0:00:37.2]} 1-0

[Event "Early-Titled-Tuesday-Blitz-March-26-2024"]
[Site "Chess.com"]
[Date "2024.03.26"]
[Round "3"]
[White "Revan_2002"]
[Black "atalz0"]
[Result "1/2-1/2"]
[WhiteElo "2584"]
[BlackElo "2384"]
[TimeControl "180+1"]
[EndTime "8:28:18 PDT"]
[Termination "Game drawn by repetition"]

1. d4 {[%clk 0:01:00.6]} 1... Nf6 {[%clk 0:02:58.9]} 2. Bg5 {[%clk 0:00:56]}
2... d5 {[%clk 0:02:58.6]} 3. Bxf6 {[%clk 0:00:55.5]} 3... gxf6 {[%clk
0:02:59.5]} 4. e3 {[%clk 0:00:54.4]} 4... c5 {[%clk 0:02:58.8]} 5. dxc5 {[%clk
0:00:52.8]} 5... e6 {[%clk 0:02:58.4]} 6. c4 {[%clk 0:00:52.3]} 6... dxc4 {[%clk
0:02:54.2]} 7. Qxd8+ {[%clk 0:00:51.5]} 7... Kxd8 {[%clk 0:02:55.1]} 8. Bxc4
{[%clk 0:00:50.8]} 8... Bxc5 {[%clk 0:02:55.5]} 9. Nc3 {[%clk 0:00:50.6]} 9...
Ke7 {[%clk 0:02:49.4]} 10. Nge2 {[%clk 0:00:46.6]} 10... a6 {[%clk 0:02:47.1]}
11. a3 {[%clk 0:00:42.4]} 11... b5 {[%clk 0:02:44.9]} 12. Bd3 {[%clk 0:00:42.2]}
12... Bb7 {[%clk 0:02:44.8]} 13. Be4 {[%clk 0:00:41.8]} 13... Ra7 {[%clk
0:02:27.1]} 14. O-O {[%clk 0:00:40.4]} 14... f5 {[%clk 0:02:17.7]} 15. Bxb7
{[%clk 0:00:39.5]} 15... Rxb7 {[%clk 0:02:18.6]} 16. Rfd1 {[%clk 0:00:39.5]}
16... Rd8 {[%clk 0:02:10.2]} 17. Rxd8 {[%clk 0:00:35.9]} 17... Kxd8 {[%clk
0:02:11.1]} 18. Rd1+ {[%clk 0:00:35.8]} 18... Ke7 {[%clk 0:02:10]} 19. b4 {[%clk
0:00:28.8]} 19... Bd6 {[%clk 0:02:07]} 20. g3 {[%clk 0:00:29.2]} 20... Nc6
{[%clk 0:01:55.2]} 21. f4 {[%clk 0:00:28]} 21... a5 {[%clk 0:01:51.5]} 22. bxa5
{[%clk 0:00:24.6]} 22... Nxa5 {[%clk 0:01:44.6]} 23. Nd4 {[%clk 0:00:25]} 23...
b4 {[%clk 0:01:18.6]} 24. axb4 {[%clk 0:00:23.6]} 24... Bxb4 {[%clk 0:01:19.5]}
25. Nce2 {[%clk 0:00:18.1]} 25... Bc5 {[%clk 0:01:05.9]} 26. Rc1 {[%clk
0:00:15.9]} 26... Bb6 {[%clk 0:00:59]} 27. Kf2 {[%clk 0:00:15.8]} 27... Rc7
{[%clk 0:00:50.7]} 28. Rxc7+ {[%clk 0:00:11.4]} 28... Bxc7 {[%clk 0:00:51.6]}
29. Kf3 {[%clk 0:00:11.9]} 29... Nc4 {[%clk 0:00:47.3]} 30. Nb3 {[%clk
0:00:11.5]} 30... Bb6 {[%clk 0:00:46]} 31. Ned4 {[%clk 0:00:10.5]} 31... Kd6
{[%clk 0:00:38.1]} 32. h3 {[%clk 0:00:10.9]} 32... h5 {[%clk 0:00:37.1]} 33. Nc2
{[%clk 0:00:10.5]} 33... Bc5 {[%clk 0:00:28.7]} 34. Nc1 {[%clk 0:00:08.1]} 34...
Kd5 {[%clk 0:00:21.7]} 35. Nd3 {[%clk 0:00:07.5]} 35... Nd2+ {[%clk 0:00:19.1]}
36. Ke2 {[%clk 0:00:08]} 36... Ne4 {[%clk 0:00:18.6]} 37. Kf3 {[%clk 0:00:08.5]}
37... Nd2+ {[%clk 0:00:17.4]} 38. Ke2 {[%clk 0:00:08.9]} 38... Nc4 {[%clk
0:00:14.4]} 39. Kf3 {[%clk 0:00:08.9]} 39... Nd2+ {[%clk 0:00:12.4]} 1/2-1/2

[Event "Early-Titled-Tuesday-Blitz-March-26-2024"]
[Site "Chess.com"]
[Date "2024.03.26"]
[Round "3"]
[White "ChainedDowntohell"]
[Black "kriscacco"]
[Result "1-0"]
[WhiteElo "2507"]
[BlackElo "2157"]
[TimeControl "180+1"]
[EndTime "8:28:18 PDT"]
[Termination "ChainedDowntohell won by resignation"]

1. a3 {[%clk 0:03:00.9]} 1... e5 {[%clk 0:02:58.5]} 2. c4 {[%clk 0:03:00.8]}
2... a5 {[%clk 0:02:54.7]} 3. Nc3 {[%clk 0:02:57.8]} 3... Nf6 {[%clk 0:02:49.7]}
4. Nf3 {[%clk 0:02:56.6]} 4... Nc6 {[%clk 0:02:46.5]} 5. d3 {[%clk 0:02:55.4]}
5... h6 {[%clk 0:02:45.3]} 6. g3 {[%clk 0:02:54.1]} 6... Bc5 {[%clk 0:02:41.8]}
7. Bg2 {[%clk 0:02:53.1]} 7... O-O {[%clk 0:02:40.3]} 8. O-O {[%clk 0:02:52.8]}
8... d6 {[%clk 0:02:39.2]} 9. e3 {[%clk 0:02:52.8]} 9... Be6 {[%clk 0:02:37.6]}
10. d4 {[%clk 0:02:52.2]} 10... exd4 {[%clk 0:02:35]} 11. exd4 {[%clk
0:02:53.1]} 11... Bxc4 {[%clk 0:02:34.9]} 12. dxc5 {[%clk 0:02:53.2]} 12... Bxf1
{[%clk 0:02:34.2]} 13. Qxf1 {[%clk 0:02:38.6]} 13... dxc5 {[%clk 0:02:33.4]} 14.
Bf4 {[%clk 0:02:38.1]} 14... Re8 {[%clk 0:02:30.2]} 15. Rd1 {[%clk 0:02:37.4]}
15... Qe7 {[%clk 0:02:29.3]} 16. Nb5 {[%clk 0:02:33.7]} 16... Rac8 {[%clk
0:02:26.4]} 17. Re1 {[%clk 0:02:10.1]} 17... Qd7 {[%clk 0:02:24.1]} 18. Rxe8+
{[%clk 0:02:08.8]} 18... Nxe8 {[%clk 0:02:23]} 19. Bh3 {[%clk 0:02:08.6]} 19...
f5 {[%clk 0:02:16.7]} 20. Nh4 {[%clk 0:02:08.6]} 20... Ne7 {[%clk 0:02:14.8]}
21. Qc4+ {[%clk 0:01:58.2]} 21... Kh7 {[%clk 0:02:13.7]} 22. Nc3 {[%clk
0:01:43.3]} 22... Nd6 {[%clk 0:02:04.6]} 23. Bxd6 {[%clk 0:01:27.9]} 23... cxd6
{[%clk 0:02:04]} 24. Qf7 {[%clk 0:01:25.3]} 24... Qc7 {[%clk 0:01:50.7]} 25. Nd5
{[%clk 0:01:04.7]} 25... Nxd5 {[%clk 0:01:38.2]} 26. Bxf5+ {[%clk 0:01:04.2]}
26... Kh8 {[%clk 0:01:37.4]} 27. Ng6+ {[%clk 0:01:03.9]} 27... Kh7 {[%clk
0:01:37.6]} 28. Ne7+ {[%clk 0:00:42.3]} 28... Kh8 {[%clk 0:01:34.7]} 29. Ng6+
{[%clk 0:00:33.4]} 29... Kh7 {[%clk 0:01:34.2]} 30. Ne7+ {[%clk 0:00:20.5]}
30... Kh8 {[%clk 0:01:32.3]} 31. Qxd5 {[%clk 0:00:18.9]} 31... Re8 {[%clk
0:01:26.1]} 32. Ng6+ {[%clk 0:00:17.3]} 32... Kh7 {[%clk 0:01:24.8]} 33. Ne5+
{[%clk 0:00:15.4]} 33... g6 {[%clk 0:01:24]} 34. Bxg6+ {[%clk 0:00:14.5]} 34...
Kg7 {[%clk 0:01:23.3]} 35. Bxe8 {[%clk 0:00:13.8]} 35... dxe5 {[%clk 0:01:23.4]}
36. Bb5 {[%clk 0:00:12.9]} 36... b6 {[%clk 0:01:22]} 37. Bc4 {[%clk 0:00:11.8]}
37... Qe7 {[%clk 0:01:20.5]} 38. Bd3 {[%clk 0:00:10.5]} 38... Qf6 {[%clk
0:01:18.8]} 39. Qd7+ {[%clk 0:00:09.5]} 39... Kf8 {[%clk 0:01:18.7]} 40. Be4
{[%clk 0:00:09.6]} 40... c4 {[%clk 0:01:14.8]} 41. Kg2 {[%clk 0:00:08.7]} 41...
Kg8 {[%clk 0:01:12]} 42. h4 {[%clk 0:00:09.2]} 42... Kf8 {[%clk 0:01:11.8]} 43.
h5 {[%clk 0:00:09.2]} 43... Qg5 {[%clk 0:01:11.5]} 44. Bg6 {[%clk 0:00:06.7]}
44... Qf6 {[%clk 0:01:10.6]} 45. Qd5 {[%clk 0:00:06.1]} 45... Ke7 {[%clk
0:01:09.8]} 46. Qxc4 {[%clk 0:00:05.9]} 46... Kd6 {[%clk 0:01:10.1]} 47. Be4
{[%clk 0:00:05.4]} 47... Kd7 {[%clk 0:01:09.2]} 48. Qd5+ {[%clk 0:00:05.5]}
48... Kc7 {[%clk 0:01:09.2]} 49. Qb7+ {[%clk 0:00:05.4]} 49... Kd8 {[%clk
0:01:09.4]} 50. Qb8+ {[%clk 0:00:06.3]} 50... Kd7 {[%clk 0:01:09.6]} 51. Qa7+
{[%clk 0:00:07.2]} 51... Kc8 {[%clk 0:01:09.2]} 52. Qa8+ {[%clk 0:00:06.9]}
52... Kc7 {[%clk 0:01:09.3]} 53. a4 {[%clk 0:00:06.7]} 53... Qd6 {[%clk
0:01:08.5]} 54. Qb7+ {[%clk 0:00:06.5]} 54... Kd8 {[%clk 0:01:08.7]} 55. Qd5
{[%clk 0:00:07.2]} 55... Qxd5 {[%clk 0:01:08.1]} 56. Bxd5 {[%clk 0:00:08.1]}
56... Ke7 {[%clk 0:01:08.9]} 57. Kf3 {[%clk 0:00:08.3]} 57... Kd6 {[%clk
0:01:09.4]} 58. Ke4 {[%clk 0:00:09.2]} 58... Ke7 {[%clk 0:01:09.7]} 59. f4
{[%clk 0:00:09.3]} 1-0

[Event "Early-Titled-Tuesday-Blitz-March-26-2024"]
[Site "Chess.com"]
[Date "2024.03.26"]
[Round "3"]
[White "pfalcon1949"]
[Black "Pedrada88"]
[Result "0-1"]
[WhiteElo "2056"]
[BlackElo "2540"]
[TimeControl "180+1"]
[EndTime "8:28:19 PDT"]
[Termination "Pedrada88 won on time"]

1. e4 {[%clk 0:02:49]} 1... b6 {[%clk 0:03:00.1]} 2. d4 {[%clk 0:02:46.2]} 2...
Bb7 {[%clk 0:03:00.4]} 3. Nc3 {[%clk 0:02:46.2]} 3... e6 {[%clk 0:03:00.7]} 4.
Bd3 {[%clk 0:02:46.3]} 4... Bb4 {[%clk 0:03:01]} 5. Nf3 {[%clk 0:02:45.7]} 5...
Nf6 {[%clk 0:03:00.4]} 6. Qe2 {[%clk 0:02:43.6]} 6... d5 {[%clk 0:02:59.2]} 7.
exd5 {[%clk 0:02:36.8]} 7... Nxd5 {[%clk 0:02:59.2]} 8. Bd2 {[%clk 0:02:36.7]}
8... Nd7 {[%clk 0:02:48.4]} 9. O-O {[%clk 0:02:34.6]} 9... Nxc3 {[%clk
0:02:42.6]} 10. bxc3 {[%clk 0:02:32.7]} 10... Bd6 {[%clk 0:02:40.6]} 11. Rfe1
{[%clk 0:02:33.2]} 11... Qf6 {[%clk 0:02:37.5]} 12. Ne5 {[%clk 0:02:25]} 12...
O-O-O {[%clk 0:02:26.7]} 13. f4 {[%clk 0:02:13.7]} 13... h6 {[%clk 0:01:58.1]}
14. Ba6 {[%clk 0:02:10.3]} 14... Bxe5 {[%clk 0:01:42.7]} 15. fxe5 {[%clk
0:01:58.1]} 15... Qh4 {[%clk 0:01:27.3]} 16. Bxb7+ {[%clk 0:01:47.7]} 16... Kxb7
{[%clk 0:01:28.2]} 17. Qf3+ {[%clk 0:01:45.5]} 17... Kb8 {[%clk 0:01:27.6]} 18.
g3 {[%clk 0:01:27.4]} 18... Qe7 {[%clk 0:01:24.8]} 19. Rf1 {[%clk 0:01:26.3]}
19... Rhf8 {[%clk 0:01:23.1]} 20. a4 {[%clk 0:01:21.2]} 20... Nxe5 {[%clk
0:01:22.2]} 21. Qf2 {[%clk 0:01:04.2]} 21... Nc4 {[%clk 0:01:13.8]} 22. a5
{[%clk 0:00:53.9]} 22... e5 {[%clk 0:00:56.4]} 23. axb6 {[%clk 0:00:46.8]} 23...
axb6 {[%clk 0:00:57.3]} 24. Qe2 {[%clk 0:00:21.7]} 24... Qe6 {[%clk 0:00:42]}
25. Be3 {[%clk 0:00:12]} 25... exd4 {[%clk 0:00:37.1]} 26. cxd4 {[%clk
0:00:09.8]} 26... Qxe3+ {[%clk 0:00:36.4]} 27. Qxe3 {[%clk 0:00:08.1]} 27...
Nxe3 {[%clk 0:00:37.3]} 28. Rfc1 {[%clk 0:00:06.8]} 28... Rxd4 {[%clk
0:00:36.1]} 29. Ra3 {[%clk 0:00:06.8]} 29... Rd1+ {[%clk 0:00:32.9]} 30. Rxd1
{[%clk 0:00:06.2]} 30... Nxd1 {[%clk 0:00:33.8]} 31. Kg2 {[%clk 0:00:06.3]}
31... b5 {[%clk 0:00:32.2]} 32. Kh3 {[%clk 0:00:07.2]} 32... Nf2+ {[%clk
0:00:30.5]} 33. Kg2 {[%clk 0:00:06.1]} 33... Ne4 {[%clk 0:00:30.4]} 34. h3
{[%clk 0:00:06.1]} 34... Nd6 {[%clk 0:00:29.7]} 35. g4 {[%clk 0:00:06.5]} 35...
Re8 {[%clk 0:00:29.9]} 36. Kf3 {[%clk 0:00:06.4]} 36... Re5 {[%clk 0:00:29.4]}
37. Kf4 {[%clk 0:00:06.1]} 37... Rc5 {[%clk 0:00:29.6]} 38. c3 {[%clk
0:00:05.7]} 38... Rc4+ {[%clk 0:00:29.5]} 39. Ke5 {[%clk 0:00:04.8]} 39... Kb7
{[%clk 0:00:27.3]} 40. Kd5 {[%clk 0:00:04.9]} 40... Rf4 {[%clk 0:00:22]} 41. Ke5
{[%clk 0:00:04.6]} 41... Rf3 {[%clk 0:00:17]} 42. h4 {[%clk 0:00:01.6]} 42...
Nc4+ {[%clk 0:00:16.3]} 0-1

[Event "Early-Titled-Tuesday-Blitz-March-26-2024"]
[Site "Chess.com"]
[Date "2024.03.26"]
[Round "3"]
[White "lucasran"]
[Black "emeli_chess"]
[Result "1-0"]
[WhiteElo "2607"]
[BlackElo "2392"]
[TimeControl "180+1"]
[EndTime "8:28:20 PDT"]
[Termination "lucasran won by resignation"]

1. Nf3 {[%clk 0:03:00.9]} 1... f5 {[%clk 0:02:59.4]} 2. d4 {[%clk 0:02:44.2]}
2... Nf6 {[%clk 0:02:58.9]} 3. c4 {[%clk 0:02:41.6]} 3... g6 {[%clk 0:02:58.8]}
4. g3 {[%clk 0:02:40]} 4... Bg7 {[%clk 0:02:59.2]} 5. Bg2 {[%clk 0:02:38.8]}
5... O-O {[%clk 0:02:59.7]} 6. O-O {[%clk 0:02:38.1]} 6... d6 {[%clk 0:02:59.8]}
7. Nc3 {[%clk 0:02:37.7]} 7... c6 {[%clk 0:02:59.6]} 8. d5 {[%clk 0:02:37.4]}
8... e5 {[%clk 0:02:54.9]} 9. dxe6 {[%clk 0:02:37.6]} 9... Bxe6 {[%clk
0:02:54.7]} 10. b3 {[%clk 0:02:38]} 10... Ne4 {[%clk 0:02:47]} 11. Nxe4 {[%clk
0:02:34.6]} 11... Bxa1 {[%clk 0:02:46.2]} 12. Neg5 {[%clk 0:02:33]} 12... Qe7
{[%clk 0:02:33.3]} 13. Ba3 {[%clk 0:02:18.9]} 13... Bf6 {[%clk 0:02:20.9]} 14.
Bxd6 {[%clk 0:02:15.3]} 14... Qd7 {[%clk 0:02:19.8]} 15. Bxf8 {[%clk 0:02:10.3]}
15... Kxf8 {[%clk 0:02:13.9]} 16. Qxd7 {[%clk 0:01:53.4]} 16... Bxd7 {[%clk
0:02:13.9]} 17. Nxh7+ {[%clk 0:01:53.3]} 17... Kg7 {[%clk 0:02:14.3]} 18. Nxf6
{[%clk 0:01:53]} 18... Kxf6 {[%clk 0:02:15.2]} 19. Rd1 {[%clk 0:01:50.8]} 19...
Be6 {[%clk 0:02:11.2]} 20. Rd8 {[%clk 0:01:43.7]} 20... Ke7 {[%clk 0:02:10.8]}
21. Rh8 {[%clk 0:01:41.7]} 21... Bf7 {[%clk 0:02:07.5]} 22. Ne5 {[%clk
0:01:37.2]} 22... Be8 {[%clk 0:02:07.4]} 23. f4 {[%clk 0:01:31.9]} 23... Nd7
{[%clk 0:02:06.9]} 24. Nxd7 {[%clk 0:00:52.8]} 24... Kxd7 {[%clk 0:02:06.3]} 25.
e4 {[%clk 0:00:52.5]} 25... fxe4 {[%clk 0:02:02.6]} 26. Bxe4 {[%clk 0:00:51.8]}
26... Rd8 {[%clk 0:01:59.1]} 27. Kf2 {[%clk 0:00:41.4]} 27... a5 {[%clk
0:01:46.8]} 28. Ke3 {[%clk 0:00:40.6]} 28... b6 {[%clk 0:01:42.3]} 29. h4 {[%clk
0:00:39.2]} 29... c5 {[%clk 0:01:39.9]} 30. f5 {[%clk 0:00:38.2]} 30... gxf5
{[%clk 0:01:38.7]} 31. Bxf5+ {[%clk 0:00:39.1]} 31... Ke7 {[%clk 0:01:38.5]} 32.
g4 {[%clk 0:00:34.5]} 32... Rd1 {[%clk 0:01:33.7]} 33. g5 {[%clk 0:00:33]} 33...
Rg1 {[%clk 0:01:28.2]} 34. Rh6 {[%clk 0:00:27.7]} 34... b5 {[%clk 0:01:26.5]}
35. Re6+ {[%clk 0:00:26.8]} 35... Kf7 {[%clk 0:01:26.2]} 36. cxb5 {[%clk
0:00:25.9]} 36... Bxb5 {[%clk 0:01:25.7]} 37. Rf6+ {[%clk 0:00:25.5]} 37... Kg7
{[%clk 0:01:25.5]} 38. Rb6 {[%clk 0:00:22.7]} 38... Be8 {[%clk 0:01:03.5]} 39.
Rb7+ {[%clk 0:00:22.4]} 39... Kf8 {[%clk 0:01:01.5]} 40. Kf4 {[%clk 0:00:21.8]}
40... Re1 {[%clk 0:00:50.5]} 41. g6 {[%clk 0:00:18.4]} 41... Bc6 {[%clk
0:00:31.6]} 42. Rc7 {[%clk 0:00:18]} 42... Be8 {[%clk 0:00:25.8]} 43. Kg5 {[%clk
0:00:18.1]} 43... Rf1 {[%clk 0:00:23.8]} 44. Kf6 {[%clk 0:00:16.6]} 44... Kg8
{[%clk 0:00:22.8]} 45. Rc8 {[%clk 0:00:16.3]} 1-0

[Event "Early-Titled-Tuesday-Blitz-March-26-2024"]
[Site "Chess.com"]
[Date "2024.03.26"]
[Round "3"]
[White "Incognito_Knight"]
[Black "sjoerd893"]
[Result "1-0"]
[WhiteElo "2725"]
[BlackElo "2501"]
[TimeControl "180+1"]
[EndTime "8:28:21 PDT"]
[Termination "Incognito_Knight won by resignation"]

1. e4 {[%clk 0:03:00.9]} 1... c5 {[%clk 0:02:54.8]} 2. d4 {[%clk 0:03:00.6]}
2... cxd4 {[%clk 0:02:54.7]} 3. Qxd4 {[%clk 0:03:01.5]} 3... Nc6 {[%clk
0:02:54.3]} 4. Qd3 {[%clk 0:03:01.9]} 4... Nf6 {[%clk 0:02:55]} 5. Nc3 {[%clk
0:03:01.6]} 5... g6 {[%clk 0:02:55.2]} 6. Nf3 {[%clk 0:03:01.4]} 6... Bg7 {[%clk
0:02:55.8]} 7. Be2 {[%clk 0:03:01.9]} 7... d6 {[%clk 0:02:56]} 8. O-O {[%clk
0:03:02]} 8... O-O {[%clk 0:02:56.6]} 9. Nd5 {[%clk 0:03:02.4]} 9... Bg4 {[%clk
0:02:53.4]} 10. c3 {[%clk 0:03:01.7]} 10... Rc8 {[%clk 0:02:51.3]} 11. Bg5
{[%clk 0:02:56.6]} 11... Nxd5 {[%clk 0:02:49.8]} 12. exd5 {[%clk 0:02:57.5]}
12... Bxf3 {[%clk 0:02:49.3]} 13. Qxf3 {[%clk 0:02:49.9]} 13... Ne5 {[%clk
0:02:46.7]} 14. Qe3 {[%clk 0:02:42.4]} 14... Re8 {[%clk 0:02:36.6]} 15. Qxa7
{[%clk 0:02:28.4]} 15... h6 {[%clk 0:02:27.8]} 16. Be3 {[%clk 0:02:23.9]} 16...
Nc4 {[%clk 0:02:22.1]} 17. Bxc4 {[%clk 0:02:20.1]} 17... Rxc4 {[%clk 0:02:23]}
18. Qxb7 {[%clk 0:02:17.4]} 18... Qb8 {[%clk 0:02:22.1]} 19. Qxb8 {[%clk
0:02:14.2]} 19... Rxb8 {[%clk 0:02:23]} 20. Rab1 {[%clk 0:02:02.6]} 20... Ra4
{[%clk 0:02:16.9]} 21. a3 {[%clk 0:01:50.5]} 21... Ra5 {[%clk 0:02:11]} 22. Rfd1
{[%clk 0:01:44.6]} 22... Rb3 {[%clk 0:02:10.3]} 23. Kf1 {[%clk 0:01:23.6]} 23...
Rab5 {[%clk 0:02:05.5]} 24. c4 {[%clk 0:01:22.1]} 24... Rb7 {[%clk 0:02:03.7]}
25. c5 {[%clk 0:01:10.7]} 25... dxc5 {[%clk 0:02:01.2]} 26. Bxc5 {[%clk
0:01:11.6]} 26... Bxb2 {[%clk 0:02:00.2]} 27. Bb4 {[%clk 0:01:04.1]} 27... Rc7
{[%clk 0:01:46.6]} 28. Rd2 {[%clk 0:00:42.3]} 28... Rc1+ {[%clk 0:01:43.5]} 29.
Rxc1 {[%clk 0:00:42.4]} 29... Bxc1 {[%clk 0:01:44.4]} 30. Ra2 {[%clk 0:00:39.9]}
30... Rd3 {[%clk 0:01:42.1]} 31. Bxe7 {[%clk 0:00:27.5]} 31... Rd1+ {[%clk
0:01:39.2]} 32. Ke2 {[%clk 0:00:26.9]} 32... Rxd5 {[%clk 0:01:40.1]} 33. Bf6
{[%clk 0:00:21]} 33... Bf4 {[%clk 0:01:30.8]} 34. a4 {[%clk 0:00:15.5]} 34...
Bc7 {[%clk 0:01:26.2]} 35. Rc2 {[%clk 0:00:11.1]} 35... Rd6 {[%clk 0:01:13.2]}
36. Rxc7 {[%clk 0:00:04.9]} 36... Rxf6 {[%clk 0:01:13.5]} 37. Rc2 {[%clk
0:00:03]} 37... Ra6 {[%clk 0:01:12.8]} 38. Ra2 {[%clk 0:00:03]} 38... Kg7 {[%clk
0:01:13.4]} 39. a5 {[%clk 0:00:03.4]} 39... Kf6 {[%clk 0:01:13.9]} 40. Kd3
{[%clk 0:00:04]} 40... Ke5 {[%clk 0:00:44.7]} 41. Kc4 {[%clk 0:00:04.3]} 41...
Ke4 {[%clk 0:00:44.7]} 42. Kb5 {[%clk 0:00:04.7]} 42... Ra8 {[%clk 0:00:45]} 43.
a6 {[%clk 0:00:05.2]} 43... f5 {[%clk 0:00:45]} 44. Kb6 {[%clk 0:00:05.1]} 44...
f4 {[%clk 0:00:45.4]} 45. a7 {[%clk 0:00:05.2]} 45... f3 {[%clk 0:00:45.3]} 46.
g3 {[%clk 0:00:05.5]} 46... Kf5 {[%clk 0:00:43.9]} 47. Kb7 {[%clk 0:00:05.8]}
47... Rxa7+ {[%clk 0:00:41.7]} 48. Kxa7 {[%clk 0:00:06.7]} 48... Kg4 {[%clk
0:00:42.1]} 49. h4 {[%clk 0:00:06.4]} 49... g5 {[%clk 0:00:40.2]} 50. hxg5
{[%clk 0:00:06.7]} 50... hxg5 {[%clk 0:00:39.7]} 51. Kb6 {[%clk 0:00:07.2]}
51... Kh3 {[%clk 0:00:40.1]} 52. Kc5 {[%clk 0:00:07.5]} 52... g4 {[%clk
0:00:40.8]} 53. Kd4 {[%clk 0:00:07.9]} 53... Kg2 {[%clk 0:00:41.1]} 54. Ke3
{[%clk 0:00:08.4]} 54... Kf1 {[%clk 0:00:41.3]} 55. Ra4 {[%clk 0:00:08]} 1-0